bitfinex/quotes_BTCUSD_20251212
["timestamp","ask_amount","ask_price","bid_price","bid_amount"]
[1765507495095,0.01061287,92472.0,92471.0,0.21728402]
[1765507495512,0.02361287,92472.0,92471.0,0.21828402]
[1765507502639,0.022,92472.0,92471.0,0.21828402]
[1765507502847,0.022,92472.0,92471.0,0.24189689]
[1765507503447,0.03702,92472.0,92471.0,0.02561287]
[1765507503785,0.10473451,92472.0,92471.0,0.002]
[1765507505485,0.13176972,92472.0,92471.0,0.002]
[1765507506119,0.13338259,92472.0,92471.0,0.002]
[1765507511564,0.11026259,92472.0,92471.0,0.002]
[1765507511967,0.13338259,92472.0,92471.0,0.002]
[1765507515166,0.12038259,92472.0,92471.0,0.001]
[1765507515569,0.13438259,92472.0,92471.0,0.002]
[1765507516492,0.14338259,92472.0,92471.0,0.003]
[1765507519287,0.23195552,92472.0,92471.0,0.003]
[1765507520013,0.14338259,92472.0,92471.0,0.003]
[1765507536182,0.43408259,92472.0,92471.0,0.003]
[1765507536423,0.40704738,92472.0,92471.0,0.003]
[1765507536627,0.41786345,92472.0,92471.0,0.003]
[1765507544381,0.42800234,92472.0,92471.0,0.003]
[1765507544540,0.56186988,92472.0,92471.0,0.003]
[1765507544738,0.45136226,92472.0,92471.0,0.003]
[1765507545166,0.42800234,92472.0,92471.0,0.003]
[1765507546245,0.67600234,92472.0,92471.0,0.003]
[1765507546781,0.67212738,92472.0,92471.0,0.003]
[1765507553139,0.68226378,92472.0,92471.0,0.003]
[1765507553339,0.7927714,92472.0,92471.0,0.003]
[1765507559729,0.7927714,92472.0,92446.0,0.01081712]
[1765507559730,0.01081794,92439.0,92436.0,0.05800009]
[1765507559948,0.21632093,92456.0,92424.0,0.01105017]
[1765507559949,0.22720418,92428.0,92425.0,0.05800009]
[1765507560175,0.22720418,92428.0,92424.0,0.00023047]
[1765507560176,0.02708089,92427.0,92426.0,0.01081689]
[1765507560396,0.02708089,92427.0,92424.0,0.00023047]
[1765507560397,0.03813089,92425.0,92424.0,0.00023047]
[1765507560805,0.06233089,92425.0,92424.0,0.00023047]
[1765507561362,0.04459451,92426.0,92425.0,0.21639166]
[1765507561562,0.04459451,92426.0,92424.0,0.00023047]
[1765507561800,0.04459451,92426.0,92425.0,0.04329168]
[1765507562673,0.04459451,92426.0,92425.0,0.25968334]
[1765507562674,0.05059451,92426.0,92425.0,0.25968334]
[1765507563087,0.07479451,92426.0,92425.0,0.25968334]
[1765507563263,0.06879451,92426.0,92425.0,0.25968334]
[1765507563465,0.008,92426.0,92425.0,0.26068334]
[1765507563669,0.007,92426.0,92425.0,0.26068334]
[1765507563886,0.015,92426.0,92425.0,0.26068334]
[1765507564133,0.015,92426.0,92425.0,0.04429168]
[1765507564336,0.02725119,92426.0,92425.0,0.04429168]
[1765507564758,0.06754119,92426.0,92425.0,0.001]
[1765507567759,0.05529,92426.0,92425.0,0.001]
[1765507567962,0.09988451,92426.0,92425.0,0.001]
[1765507570755,0.10149738,92426.0,92425.0,0.001]
[1765507571345,0.39219738,92426.0,92425.0,0.001]
[1765507574706,0.05690287,92426.0,92425.0,0.001]
[1765507574907,0.04978287,92426.0,92425.0,0.001]
[1765507575260,0.03208,92426.0,92425.0,0.001]
[1765507576215,0.015,92426.0,92425.0,0.001]
[1765507580027,0.05538,92426.0,92425.0,0.00111662]
[1765507580787,0.03058,92426.0,92425.0,0.00111662]
[1765507580997,0.015,92426.0,92425.0,0.00111662]
[1765507581412,0.05538,92426.0,92425.0,0.00111662]
[1765507581614,0.03058,92426.0,92425.0,0.00111662]
[1765507582059,0.015,92426.0,92425.0,0.00111662]
[1765507583355,0.01708,92438.0,92435.0,0.01081841]
[1765507583555,0.01708,92438.0,92435.0,0.05411009]
[1765507584130,0.04188,92438.0,92435.0,0.05411009]
[1765507584559,0.04188,92438.0,92436.0,0.21636591]
[1765507585138,0.04888,92438.0,92436.0,0.21636591]
[1765507585684,0.05588,92438.0,92436.0,0.21636591]
[1765507585881,0.04888,92438.0,92436.0,0.21636591]
[1765507586181,0.05588,92438.0,92436.0,0.21636591]
[1765507586383,0.04888,92438.0,92436.0,0.21636591]
[1765507586799,0.05588,92438.0,92436.0,0.21736591]
[1765507590134,0.05936498,92437.0,92436.0,0.001]
[1765507590341,0.08641042,92437.0,92436.0,0.001]
[1765507591094,0.04459451,92431.0,92430.0,0.01081899]
[1765507591340,0.04459451,92430.0,92429.0,0.01081911]
[1765507591513,0.08497451,92430.0,92429.0,0.01081911]
[1765507593041,0.08597451,92430.0,92429.0,0.01081911]
[1765507593905,0.08897451,92430.0,92429.0,0.01181911]
[1765507596575,0.14936915,92430.0,92429.0,0.001]
[1765507598259,0.08897451,92430.0,92429.0,0.001]
[1765507609408,0.08897451,92430.0,92429.0,0.2173823]
[1765507611228,0.004,92430.0,92429.0,0.2173823]
[1765507611629,0.004,92430.0,92429.0,0.24986686]
[1765507612033,0.004,92430.0,92429.0,0.2173823]
[1765507618427,0.02753,92430.0,92429.0,0.2173823]
[1765507618636,0.004,92430.0,92429.0,0.2173823]
[1765507619037,0.00439694,92430.0,92429.0,0.2173823]
[1765507621920,0.00439694,92430.0,92429.0,0.2166023]
[1765507622752,0.00439694,92430.0,92429.0,0.2401323]
[1765507622951,0.00439694,92430.0,92429.0,0.28326028]
[1765507623439,0.00439694,92430.0,92429.0,0.57396028]
[1765507623666,0.00139694,92430.0,92429.0,0.57374028]
[1765507624026,0.00139694,92430.0,92429.0,0.57774028]
[1765507624491,0.00239694,92430.0,92429.0,0.57374028]
[1765507624700,0.00039694,92430.0,92429.0,0.57374028]
[1765507624892,0.00139694,92430.0,92429.0,0.57974028]
[1765507625105,0.00339694,92430.0,92429.0,0.5366123]
[1765507630062,0.00339694,92430.0,92429.0,0.5943382]
[1765507630270,0.00339694,92430.0,92429.0,0.59433384]
[1765507630655,0.00339694,92430.0,92429.0,0.5366123]
[1765507632891,0.02703667,92467.0,92466.0,0.21629571]
[1765507633090,0.01164,92478.0,92430.0,0.21637996]
[1765507633091,0.01164,92477.0,92476.0,0.21627233]
[1765507633314,0.01164,92477.0,92462.0,0.01081525]
[1765507633315,0.21628825,92470.0,92462.0,0.01081525]
[1765507633520,0.01708,92483.0,92430.0,0.55622348]
[1765507633521,0.01164,92448.0,92446.0,0.21634251]
[1765507634082,0.02353,92447.0,92446.0,0.21634251]
[1765507634454,0.01164,92448.0,92446.0,0.21634251]
[1765507634656,0.02353,92455.0,92450.0,0.21633219]
[1765507634866,0.05057018,92455.0,92450.0,0.21633219]
[1765507635109,0.02353,92454.0,92453.0,0.21632613]
[1765507635488,0.04018,92454.0,92453.0,0.21632613]
[1765507636441,0.04018,92454.0,92453.0,0.21732613]
[1765507637396,0.01164,92456.0,92453.0,0.22814243]
[1765507637530,0.01164,92456.0,92455.0,0.21632145]
[1765507637735,0.03419,92456.0,92455.0,0.21632145]
[1765507638361,0.05027,92456.0,92455.0,0.21632145]
[1765507638730,0.05127,92456.0,92455.0,0.21632145]
[1765507639137,0.01264,92456.0,92455.0,0.21632145]
[1765507639497,0.01464,92456.0,92455.0,0.21632145]
[1765507639699,0.003,92456.0,92455.0,0.21632145]
[1765507643919,0.00374874,92456.0,92455.0,0.21632145]
[1765507645144,0.04237874,92456.0,92455.0,0.21632145]
[1765507645281,0.08697325,92456.0,92455.0,0.21632145]
[1765507645695,0.04459451,92454.0,92451.0,0.22714735]
[1765507645894,0.03425,92455.0,92452.0,0.01081642]
[1765507646126,0.04459451,92451.0,92450.0,0.01081665]
[1765507646351,0.08322451,92451.0,92450.0,0.01081665]
[1765507646950,0.04459451,92451.0,92450.0,0.01081665]
[1765507647151,0.06067451,92451.0,92450.0,0.01081665]
[1765507647355,0.08422451,92451.0,92450.0,0.01281665]
[1765507648407,0.08422451,92451.0,92450.0,0.01381665]
[1765507652478,0.03963,92451.0,92450.0,0.05710833]
[1765507652696,0.04023478,92451.0,92450.0,0.05710833]
[1765507652899,0.00160478,92451.0,92450.0,0.05710833]
[1765507653235,0.00160478,92451.0,92450.0,0.07874164]
[1765507654035,0.00160478,92451.0,92450.0,0.07885826]
[1765507655115,0.00160478,92451.0,92450.0,0.05722495]
[1765507655961,0.04023478,92451.0,92450.0,0.05722495]
[1765507656168,0.01768478,92451.0,92450.0,0.05722495]
[1765507656299,0.00160478,92451.0,92450.0,0.05722495]
[1765507659137,0.00160478,92451.0,92450.0,0.38663826]
[1765507659336,0.00160478,92451.0,92450.0,0.45815132]
[1765507659542,0.01708,92481.0,92478.0,0.01081338]
[1765507659772,0.01708,92481.0,92480.0,0.04329168]
[1765507661230,0.02508,92481.0,92480.0,0.04429168]
[1765507661562,0.00886362,92481.0,92480.0,0.04429168]
[1765507662138,0.01886362,92481.0,92480.0,0.04529168]
[1765507662293,0.00886362,92481.0,92480.0,0.04429168]
[1765507662639,0.00986362,92481.0,92480.0,0.04929168]
[1765507663008,0.00186362,92481.0,92480.0,0.04829168]
[1765507663404,0.00286362,92481.0,92480.0,0.05029168]
[1765507665134,0.00286362,92481.0,92480.0,0.09341966]
[1765507665360,0.00286362,92481.0,92480.0,0.11596966]
[1765507666651,0.00286362,92481.0,92480.0,0.40666966]
[1765507667240,0.00286362,92481.0,92480.0,0.45668805]
[1765507669347,8.4606422,92500.0,92499.0,0.21621855]
[1765507670260,8.46118894,92500.0,92499.0,0.21621855]
[1765507671343,8.46118894,92500.0,92499.0,0.22021855]
[1765507671743,8.46118894,92500.0,92499.0,0.51091855]
[1765507671948,8.46118894,92500.0,92499.0,0.51291855]
[1765507676524,8.46118894,92500.0,92499.0,0.55604653]
[1765507677471,8.46118894,92500.0,92499.0,0.55204653]
[1765507677670,8.46118894,92500.0,92499.0,0.55004653]
[1765507677874,8.46118894,92500.0,92499.0,0.55604653]
[1765507680524,7.75593384,92500.0,92499.0,0.60606492]
[1765507681378,7.75593384,92500.0,92499.0,0.60406492]
[1765507681569,7.75593384,92500.0,92499.0,0.60006492]
[1765507681779,7.75693384,92500.0,92499.0,0.56093694]
[1765507682000,7.75693384,92500.0,92499.0,0.58297694]
[1765507682281,7.75693384,92500.0,92499.0,0.53299855]
[1765507682503,7.75693384,92500.0,92499.0,0.24229855]
[1765507682752,7.75693384,92500.0,92499.0,0.53299855]
[1765507683333,7.75693384,92500.0,92499.0,0.52799855]
[1765507683740,7.75593384,92500.0,92499.0,0.52599855]
[1765507683938,7.75593384,92500.0,92499.0,0.52799855]
[1765507684615,7.75593384,92500.0,92499.0,0.57112653]
[1765507685395,7.02707943,92500.0,92499.0,1.62114492]
[1765507685636,6.90197524,92500.0,92499.0,1.65359389]
[1765507685835,6.77373387,92500.0,92499.0,1.65359389]
[1765507686037,6.47477018,92500.0,92499.0,1.65359389]
[1765507686241,6.2051216,92500.0,92499.0,1.65359389]
[1765507686483,5.97582099,92500.0,92499.0,1.65159389]
[1765507686674,5.82361534,92500.0,92499.0,1.65359389]
[1765507686849,5.65413219,92500.0,92499.0,1.65359389]
[1765507687046,5.45499702,92500.0,92499.0,1.65759389]
[1765507687247,5.27801299,92500.0,92499.0,1.65759389]
[1765507687450,3.6180872,92500.0,92499.0,1.65359389]
[1765507687659,3.35905893,92500.0,92499.0,1.65359389]
[1765507687862,3.16608722,92500.0,92499.0,1.68353563]
[1765507688157,2.81617441,92500.0,92499.0,1.68353563]
[1765507688355,2.81617441,92500.0,92499.0,0.67853563]
[1765507688356,1.99432015,92500.0,92499.0,0.67853563]
[1765507688560,1.78833811,92500.0,92499.0,1.68553563]
[1765507688760,1.52043947,92500.0,92499.0,1.68553563]
[1765507689032,1.52043947,92500.0,92499.0,1.66059389]
[1765507689208,1.12506007,92500.0,92499.0,1.66059389]
[1765507689405,0.25923688,92500.0,92499.0,0.69559389]
[1765507689625,0.12931501,92500.0,92499.0,1.69559389]
[1765507689818,0.12931501,92500.0,92499.0,1.70059389]
[1765507695836,1e-08,92500.0,92499.0,1.70059389]
[1765507697393,9e-05,92518.0,92517.0,1.35072488]
[1765507697524,9e-05,92518.0,92517.0,1.67336136]
[1765507698526,9e-05,92518.0,92517.0,1.67768679]
[1765507699139,9e-05,92518.0,92517.0,1.68268679]
[1765507699140,0.00109,92518.0,92517.0,1.68268679]
[1765507699507,0.00109,92518.0,92517.0,1.68468679]
[1765507700460,0.00109,92518.0,92517.0,1.742025]
[1765507700665,0.00147893,92518.0,92517.0,1.742025]
[1765507701065,0.00147893,92518.0,92517.0,1.68468679]
[1765507702051,0.0002,92520.0,92519.0,0.5568902]
[1765507702256,0.00031665,92520.0,92519.0,1.68939818]
[1765507703305,0.00031665,92520.0,92519.0,1.69639818]
[1765507703428,0.00131665,92520.0,92519.0,1.69639818]
[1765507703631,0.00189198,92520.0,92519.0,1.69639818]
[1765507705110,0.00189198,92520.0,92519.0,1.77076053]
[1765507705394,0.00189198,92520.0,92519.0,1.71343818]
[1765507705621,0.00189198,92520.0,92519.0,0.71343818]
[1765507705776,0.00189198,92520.0,92519.0,1.71343818]
[1765507706423,0.00189198,92520.0,92519.0,1.69639818]
[1765507706637,0.00189198,92520.0,92519.0,1.71343818]
[1765507710826,0.00189198,92520.0,92519.0,1.71776388]
[1765507712550,0.00189198,92520.0,92519.0,1.68464239]
[1765507713697,0.0004,92530.0,92529.0,0.59999482]
[1765507713903,0.0004756,92530.0,92529.0,1.64468482]
[1765507714163,0.0004756,92530.0,92529.0,1.68937482]
[1765507714337,0.0004756,92530.0,92529.0,1.7702395]
[1765507714544,1e-08,92540.0,92539.0,1.54995307]
[1765507714872,1e-08,92540.0,92539.0,1.68430146]
[1765507715147,0.0004,92550.0,92539.0,1.68430146]
[1765507715148,0.0004,92550.0,92549.0,1.56682662]
[1765507715306,0.00047561,92550.0,92549.0,1.61151662]
[1765507715507,0.00047561,92550.0,92549.0,1.65620662]
[1765507716109,0.00047561,92550.0,92549.0,1.66053086]
[1765507716325,0.00047561,92550.0,92549.0,1.67761086]
[1765507716520,0.00047561,92550.0,92549.0,1.67861086]
[1765507716715,0.00047561,92550.0,92549.0,0.67861086]
[1765507716957,0.00047561,92550.0,92549.0,1.67861086]
[1765507717298,0.00047561,92550.0,92549.0,1.68161086]
[1765507719327,0.00047561,92550.0,92549.0,1.75806236]
[1765507719778,0.00133821,92550.0,92549.0,0.75806236]
[1765507720074,0.00133821,92550.0,92549.0,1.75806236]
[1765507720582,0.00133821,92550.0,92549.0,1.68161086]
[1765507720778,0.00133821,92550.0,92549.0,0.68161086]
[1765507720996,0.00133821,92550.0,92549.0,1.68161086]
[1765507723697,0.0004,92560.0,92559.0,1.56680327]
[1765507723913,0.0004,92560.0,92559.0,0.61149327]
[1765507724125,0.0004,92560.0,92559.0,0.7496345]
[1765507724320,0.0004,92560.0,92559.0,0.67326327]
[1765507724667,0.0004,92560.0,92559.0,0.67626327]
[1765507725518,0.0004,92560.0,92559.0,0.67726327]
[1765507725927,0.0004,92560.0,92559.0,0.67426327]
[1765507726318,0.0004,92560.0,92559.0,0.67726327]
[1765507726713,0.0004,92560.0,92559.0,0.73456106]
[1765507729261,0.00068747,92560.0,92559.0,0.73456106]
[1765507730224,0.00068747,92560.0,92559.0,0.67726327]
[1765507731535,0.00068747,92560.0,92559.0,0.71038476]
[1765507731887,0.00068747,92560.0,92559.0,0.71538476]
[1765507732546,0.00068747,92560.0,92559.0,1.71538476]
[1765507733413,0.00068747,92560.0,92559.0,0.71538476]
[1765507733617,0.00068747,92560.0,92559.0,1.71538476]
[1765507734426,0.00068747,92560.0,92559.0,0.71538476]
[1765507734627,0.00068747,92560.0,92559.0,1.71538476]
[1765507735449,0.00068747,92560.0,92559.0,0.71538476]
[1765507735646,0.00068747,92560.0,92559.0,1.71538476]
[1765507736833,0.00068747,92560.0,92559.0,1.69830476]
[1765507737016,0.00068747,92560.0,92559.0,1.71538476]
[1765507737513,0.00068747,92560.0,92559.0,0.71538476]
[1765507737717,0.00068747,92560.0,92559.0,1.71538476]
[1765507739788,1e-08,92560.0,92559.0,1.71538476]
[1765507740505,0.0004,92570.0,92569.0,1.59990142]
[1765507740716,0.0004,92570.0,92569.0,1.64459142]
[1765507740939,0.0004,92570.0,92569.0,1.68928142]
[1765507741787,0.005,92576.0,92575.0,0.50674104]
[1765507742001,0.005,92576.0,92575.0,1.72894741]
[1765507742492,0.005,92576.0,92575.0,1.73394741]
[1765507744039,0.005,92576.0,92575.0,1.73594741]
[1765507744357,0.005,92576.0,92575.0,1.83163826]
[1765507745218,1e-08,92576.0,92575.0,1.83163826]
[1765507745420,1e-08,92576.0,92575.0,1.73594741]
[1765507745644,0.0004,92590.0,92575.0,1.73594741]
[1765507745645,0.0004,92590.0,92589.0,1.59985475]
[1765507745829,0.00051658,92590.0,92589.0,0.66158475]
[1765507746019,0.00051658,92590.0,92589.0,1.70627475]
[1765507746800,0.00051658,92590.0,92589.0,1.71059674]
[1765507747215,0.00051658,92590.0,92589.0,1.69355674]
[1765507747420,0.00051658,92590.0,92589.0,1.71263674]
[1765507747621,0.11806658,92590.0,92589.0,0.21800838]
[1765507747831,0.04896658,92590.0,92589.0,0.21800838]
[1765507748029,0.00051658,92590.0,92589.0,0.26569838]
[1765507748230,0.00051658,92590.0,92589.0,0.31038838]
[1765507748456,0.00051658,92590.0,92589.0,0.35051636]
[1765507748679,0.00051658,92590.0,92589.0,0.30538838]
[1765507748881,0.00051658,92590.0,92589.0,0.34951636]
[1765507749298,0.00051658,92590.0,92589.0,0.69023475]
[1765507749954,0.00051658,92590.0,92589.0,0.68923475]
[1765507751375,0.00137864,92590.0,92589.0,1.69023475]
[1765507752168,0.00137864,92590.0,92589.0,0.70731475]
[1765507752506,0.00137864,92590.0,92589.0,0.71163718]
[1765507752889,0.00137864,92590.0,92589.0,0.71063718]
[1765507753293,0.00137864,92590.0,92589.0,1.71263718]
[1765507753517,0.00137864,92590.0,92589.0,1.79006334]
[1765507753716,0.00137864,92590.0,92589.0,1.71063718]
[1765507754184,1e-08,92590.0,92589.0,1.71263718]
[1765507754597,0.0004,92600.0,92599.0,1.66451142]
[1765507754598,1e-08,92600.0,92599.0,1.66451142]
[1765507754807,1e-08,92600.0,92599.0,1.70815142]
[1765507756441,1e-08,92600.0,92599.0,1.71015142]
[1765507756854,1e-08,92600.0,92599.0,1.70815142]
[1765507757277,1e-08,92600.0,92599.0,1.71215142]
[1765507757751,0.0004,92620.0,92619.0,0.50663841]
[1765507757752,1e-08,92620.0,92619.0,0.50663841]
[1765507757897,0.0002,92650.0,92642.0,0.54971278]
[1765507758106,0.0004787,92643.0,92642.0,0.70207117]
[1765507758530,0.0004787,92643.0,92642.0,0.76659118]
[1765507758674,0.0004787,92643.0,92642.0,0.70940463]
[1765507758877,0.0004787,92643.0,92642.0,1.70940463]
[1765507760125,0.0004787,92643.0,92642.0,1.7664775]
[1765507760441,0.00200057,92643.0,92642.0,1.71140463]
[1765507760874,0.00200057,92643.0,92642.0,1.71040463]
[1765507762113,0.00200057,92643.0,92642.0,1.69332463]
[1765507762313,0.00200057,92643.0,92642.0,1.71040463]
[1765507762686,0.00200057,92643.0,92642.0,1.69532463]
[1765507762812,0.00200057,92643.0,92642.0,0.51691826]
[1765507763017,0.00361344,92643.0,92642.0,0.04392]
[1765507763241,0.00361344,92643.0,92642.0,0.37774798]
[1765507763570,0.00361344,92643.0,92642.0,0.3752]
[1765507763768,0.00200057,92643.0,92642.0,0.33462]
[1765507763977,0.00200057,92643.0,92642.0,0.33262]
[1765507765196,0.00200057,92643.0,92642.0,0.37286]
[1765507765396,0.00200057,92643.0,92642.0,0.33162]
[1765507765802,0.00200057,92643.0,92642.0,0.37152]
[1765507766006,0.00200057,92643.0,92642.0,0.43154488]
[1765507766615,0.00200057,92643.0,92642.0,0.44862488]
[1765507770446,0.00200057,92643.0,92642.0,0.35072488]
[1765507770596,0.00200057,92643.0,92642.0,0.39601839]
[1765507771058,0.00200057,92643.0,92642.0,0.32892]
[1765507771460,0.00200057,92643.0,92642.0,0.346]
[1765507771756,0.00200057,92643.0,92642.0,0.32892]
[1765507771961,0.00200057,92643.0,92642.0,0.30778]
[1765507772180,0.00200057,92643.0,92642.0,0.34566]
[1765507772520,0.00200057,92643.0,92642.0,0.30778]
[1765507772902,0.12181057,92643.0,92642.0,0.2907]
[1765507773111,0.04819057,92643.0,92642.0,0.2907]
[1765507773673,0.00200057,92643.0,92642.0,0.2907]
[1765507774011,0.04819057,92643.0,92642.0,0.2907]
[1765507774398,0.00200057,92643.0,92642.0,0.2907]
[1765507774638,0.00300057,92643.0,92642.0,0.2907]
[1765507775249,0.12281057,92643.0,92642.0,0.2907]
[1765507775622,0.05080344,92643.0,92642.0,0.2907]
[1765507775844,0.05080344,92643.0,92639.0,0.01079458]
[1765507775845,0.12442344,92643.0,92639.0,0.01079458]
[1765507776106,0.08074,92640.0,92637.0,0.04329168]
[1765507776330,0.04780287,92638.0,92637.0,0.04329168]
[1765507776724,0.12142287,92638.0,92637.0,0.04329168]
[1765507778065,0.0014787,92643.0,92637.0,0.11509168]
[1765507778304,0.0004787,92643.0,92642.0,0.60250968]
[1765507778528,0.0004787,92643.0,92642.0,0.67121117]
[1765507778936,0.0004787,92643.0,92642.0,1.67121117]
[1765507780335,0.0004787,92643.0,92642.0,0.67121117]
[1765507780584,0.0004787,92643.0,92642.0,0.65271117]
[1765507780710,0.0004787,92643.0,92642.0,0.65371117]
[1765507780906,0.0004787,92643.0,92642.0,0.68864117]
[1765507781105,0.0004787,92643.0,92642.0,0.67056117]
[1765507781315,0.0004787,92643.0,92642.0,0.69164117]
[1765507781790,0.00200057,92643.0,92642.0,0.68764117]
[1765507781976,0.00200057,92643.0,92642.0,0.67156117]
[1765507782210,0.00200057,92643.0,92642.0,0.68964117]
[1765507784558,0.00200057,92643.0,92642.0,0.69697463]
[1765507784958,0.00200057,92643.0,92642.0,0.51591826]
[1765507785165,0.00200057,92643.0,92642.0,0.56663826]
[1765507785680,0.00200057,92643.0,92642.0,0.5916248]
[1765507785921,0.00200057,92643.0,92642.0,0.5583048]
[1765507786444,0.00200057,92643.0,92642.0,0.63443278]
[1765507786990,0.00200057,92643.0,92642.0,0.69072973]
[1765507787206,0.00200057,92643.0,92642.0,0.63343278]
[1765507787869,0.00300057,92643.0,92642.0,0.63343278]
[1765507789023,0.00300057,92643.0,92642.0,0.66583562]
[1765507791260,0.00300057,92643.0,92642.0,0.71585401]
[1765507792847,0.00300057,92643.0,92642.0,0.68345117]
[1765507796180,0.00200057,92643.0,92642.0,0.68345117]
[1765507796393,0.00200057,92643.0,92642.0,0.68545117]
[1765507797004,0.00200057,92643.0,92642.0,0.68745117]
[1765507798228,0.00733346,92670.0,92669.0,0.5065219]
[1765507798429,0.00745004,92670.0,92669.0,0.59597988]
[1765507798628,0.00745004,92670.0,92669.0,0.5821019]
[1765507798833,0.00745004,92670.0,92669.0,0.62522988]
[1765507799047,0.00745004,92670.0,92669.0,0.5821019]
[1765507799246,0.00745004,92670.0,92669.0,0.63212029]
[1765507799602,0.00745004,92670.0,92669.0,0.67624827]
[1765507799730,0.00745004,92670.0,92669.0,0.63312029]
[1765507800549,0.00745004,92670.0,92669.0,0.61604029]
[1765507800755,0.00745004,92670.0,92669.0,1.64312678]
[1765507800982,0.00745004,92670.0,92669.0,1.64412678]
[1765507801211,0.00745004,92670.0,92669.0,0.69124369]
[1765507801422,0.00745004,92670.0,92669.0,0.75273518]
[1765507801590,0.00745004,92670.0,92669.0,0.63324029]
[1765507802040,0.00745004,92670.0,92669.0,0.5085219]
[1765507802561,0.00745004,92670.0,92669.0,0.5256019]
[1765507802798,0.00745004,92670.0,92669.0,0.5236019]
[1765507802949,0.11959004,92670.0,92669.0,0.001]
[1765507803520,0.05287004,92670.0,92668.0,0.21582367]
[1765507803713,0.05364488,92670.0,92668.0,0.21582367]
[1765507803870,0.05287004,92670.0,92668.0,0.21582367]
[1765507804084,0.04542,92669.0,92668.0,0.21582367]
[1765507804861,0.00745004,92670.0,92668.0,0.21582367]
[1765507805273,0.00906291,92670.0,92668.0,0.21582367]
[1765507805888,0.00906291,92670.0,92667.0,0.01079132]
[1765507805889,0.11214,92669.0,92667.0,0.2907]
[1765507806093,0.21583121,92665.0,92658.0,0.04895002]
[1765507806313,0.03267,92661.0,92659.0,0.03815765]
[1765507806519,0.03267,92661.0,92658.0,0.03815765]
[1765507806850,0.04346202,92661.0,92657.0,0.2907]
[1765507806975,0.04346202,92661.0,92656.0,0.0278726]
[1765507806976,0.04542,92658.0,92656.0,0.03815765]
[1765507807184,0.05621249,92657.0,92653.0,0.01079295]
[1765507807410,0.05782536,92657.0,92653.0,0.01079295]
[1765507807631,0.12454536,92657.0,92653.0,0.01079295]
[1765507807817,0.01079272,92655.0,92651.0,0.09224252]
[1765507808018,0.05621284,92654.0,92651.0,0.04329168]
[1765507808248,0.04542,92654.0,92652.0,0.03815765]
[1765507808455,0.04703287,92654.0,92651.0,0.08144933]
[1765507808690,0.04703287,92654.0,92651.0,0.09224252]
[1765507809324,0.04703287,92654.0,92651.0,0.05408487]
[1765507809533,0.04803287,92654.0,92651.0,0.09224252]
[1765507809705,0.00025833,92652.0,92651.0,0.09224252]
[1765507809930,0.00025833,92652.0,92641.0,0.03815765]
[1765507809931,0.010794,92644.0,92641.0,0.03815765]
[1765507810135,0.010794,92644.0,92634.0,0.03815765]
[1765507810136,0.30591329,92636.0,92634.0,0.03815765]
[1765507810342,0.30591329,92636.0,92629.0,0.05723139]
[1765507810343,0.22671574,92627.0,92624.0,0.03815765]
[1765507810538,0.01079645,92623.0,92620.0,0.03815765]
[1765507810756,0.22671819,92626.0,92619.0,0.03815765]
[1765507810757,0.07809,92621.0,92619.0,0.03815765]
[1765507811183,0.07809,92621.0,92618.0,0.04895468]
[1765507811390,0.07820647,92621.0,92618.0,0.30149703]
[1765507812155,0.07820647,92621.0,92619.0,0.21593841]
[1765507812357,0.00011647,92621.0,92620.0,0.02567]
[1765507812580,0.00011647,92621.0,92620.0,0.0723336]
[1765507813004,0.00111647,92621.0,92620.0,0.0723336]
[1765507813405,0.00011647,92621.0,92620.0,0.11048891]
[1765507813970,0.00011647,92621.0,92620.0,0.0723336]
[1765507814224,0.00011647,92621.0,92620.0,0.11048071]
[1765507814547,0.00011647,92621.0,92620.0,0.0723336]
[1765507815679,0.00011647,92621.0,92620.0,0.0472636]
[1765507815885,0.00011647,92621.0,92620.0,0.0714536]
[1765507816755,0.00011647,92621.0,92620.0,0.44342869]
[1765507816959,0.00011647,92621.0,92620.0,0.38368798]
[1765507817157,0.00011647,92621.0,92620.0,0.40076798]
[1765507817312,0.00011647,92621.0,92620.0,0.43887449]
[1765507817651,0.00011647,92621.0,92620.0,0.39574651]
[1765507817811,0.00011647,92621.0,92620.0,0.36764649]
[1765507818248,0.00011647,92621.0,92620.0,0.40574853]
[1765507818656,0.00011647,92621.0,92620.0,0.36764649]
[1765507818869,0.00011647,92621.0,92620.0,0.40574781]
[1765507819188,0.00011647,92621.0,92620.0,0.35764]
[1765507820179,0.00011647,92621.0,92620.0,0.40076798]
[1765507820591,0.00011647,92621.0,92616.0,0.01079727]
[1765507820592,0.00011647,92621.0,92613.0,0.03941644]
[1765507820593,0.22595096,92614.0,92613.0,0.03941644]
[1765507820766,0.26555096,92614.0,92613.0,0.00131512]
[1765507820963,0.09936,92614.0,92613.0,0.00131512]
[1765507821773,0.10036,92614.0,92613.0,0.00131512]
[1765507822134,0.10136,92614.0,92613.0,0.00131512]
[1765507823419,0.14595451,92614.0,92613.0,0.00131512]
[1765507824225,0.14756738,92614.0,92613.0,0.00131512]
[1765507824605,0.14556738,92614.0,92613.0,0.00131512]
[1765507824923,0.15356738,92614.0,92613.0,0.00131512]
[1765507825120,0.24281106,92614.0,92613.0,0.00131512]
[1765507827152,0.17064738,92614.0,92613.0,0.00131512]
[1765507833665,0.15356738,92614.0,92613.0,0.00131512]
[1765507833930,0.17064738,92614.0,92613.0,0.00131512]
[1765507838473,0.50463906,92614.0,92613.0,0.00131512]
[1765507838673,0.50463906,92614.0,92571.0,0.04890383]
[1765507838674,0.21603361,92579.0,92571.0,0.01080251]
[1765507838907,0.06741,92572.0,92571.0,0.01080251]
[1765507839861,0.02781,92580.0,92579.0,0.21603171]
[1765507840053,0.004,92614.0,92579.0,0.21603171]
[1765507840054,0.01079995,92593.0,92589.0,0.01080041]
[1765507840290,0.01079983,92594.0,92589.0,0.01080041]
[1765507840692,0.01080006,92592.0,92587.0,0.01080065]
[1765507840884,0.0108003,92590.0,92586.0,0.21601411]
[1765507841025,0.0108003,92590.0,92586.0,0.22681487]
[1765507841225,0.0108003,92590.0,92589.0,0.04329168]
[1765507842260,0.0108003,92590.0,92576.0,0.01080193]
[1765507842261,0.01080135,92581.0,92576.0,0.01080193]
[1765507842477,0.01080158,92579.0,92576.0,0.01080193]
[1765507842666,0.01080158,92579.0,92571.0,0.33438038]
[1765507842667,0.01080193,92576.0,92572.0,0.0108024]
[1765507843046,0.01080193,92576.0,92573.0,0.01080228]
[1765507843244,0.01080181,92577.0,92574.0,0.01080216]
[1765507844048,0.01080158,92579.0,92575.0,0.01080205]
[1765507844724,0.01080158,92579.0,92576.0,0.01080193]
[1765507844900,0.02927,92583.0,92580.0,0.01080146]
[1765507845105,0.01080123,92582.0,92578.0,0.0108017]
[1765507845326,0.01080123,92582.0,92579.0,0.01080158]
[1765507845946,0.04027,92580.0,92578.0,0.0108017]